{"text_format":"1","workbook":"xlsx","n_sheets":4,"sheets":["Form SPA-1","2018 Eligible List","2024 Eligible List","Sheet1"],"not_rendered":{"charts":0,"images":0,"macros":0,"external_links":0,"defined_names":0,"comments":0,"pivot_tables":0},"unopened":[],"bounds":{"document_bytes":16777216,"sheet_cells":100000,"rows_first":2000,"rows_last":500,"rows_between":2000,"halvings":0,"cell_chars":16384,"cell_head_chars":4096},"cells_cut":0,"cells_raw":0,"read":"whole","date_system":"1900"}

{"sheet":"Form SPA-1","index":0,"n_rows":38,"n_cols":7,"rows_kept":38,"cut":false,"hidden":false,"merged":[[6,1,6,6],[10,4,11,4],[7,1,8,6],[10,2,11,2],[34,3,34,6],[10,1,11,1],[10,3,11,3],[10,5,11,5],[37,3,37,6],[38,1,38,2],[38,3,38,6],[35,3,36,6],[34,1,34,2],[37,1,37,2]]}
[null,null,null,null,null,null,"Form SPA-1"]
[null,"Contract Number",null,null,null,null,"Revised 10-23-2023"]
[null,"TIP Number"]
[null,"Standard Specifications Year"]
[null,"County and Route "]
[]
[null,{"$f":"CONCATENATE(C4,\" \",\"Bid Items Eligible for Steel Price Adjustment\")","v":" Bid Items Eligible for Steel Price Adjustment"}]
[null,"Instructions: This form shall be completed in accordance with the Special Provision.  If you choose to have Steel Price Adjustments applied to any of the items listed below, select the word “Yes” in the “Option” column corresponding to the item.  The form must be signed, dated, and submitted to the Contract Engineer within the timeframe required by the Special Provision."]
[]
[]
[null,"Contract Line Number","Item Number and Description","Item Number","Description ","Category","Option"]
[null,null,null,null,null,null,"(Yes or No)"]
[null,null,null,{"$f":"IF(C13=\"\",\"\",IF(C4=2018,VLOOKUP(C13,'2018 Eligible List'!A:G,2,FALSE),VLOOKUP(C13,'2024 Eligible List'!A:G,2,FALSE)))","v":""},{"$f":"IF(C13=\"\",\"\",IF(C4=2018,VLOOKUP(C13,'2018 Eligible List'!A:G,3,FALSE),VLOOKUP(C13,'2024 Eligible List'!A:G,3,FALSE)))","v":""},{"$f":"IF(C13=\"\",\"\",IF($C$4=2018,VLOOKUP(C13,'2018 Eligible List'!A:G,4,FALSE),VLOOKUP(C13,'2024 Eligible List'!A:G,4,FALSE)))","v":""}]
[null,null,null,{"$f":"IF(C14=\"\",\"\",IF(C5=2018,VLOOKUP(C14,'2018 Eligible List'!A:G,2,FALSE),VLOOKUP(C14,'2024 Eligible List'!A:G,2,FALSE)))","v":""},{"$f":"IF(C14=\"\",\"\",IF(C5=2018,VLOOKUP(C14,'2018 Eligible List'!A:G,3,FALSE),VLOOKUP(C14,'2024 Eligible List'!A:G,3,FALSE)))","v":""},{"$f":"IF(C14=\"\",\"\",IF($C$4=2018,VLOOKUP(C14,'2018 Eligible List'!A:G,4,FALSE),VLOOKUP(C14,'2024 Eligible List'!A:G,4,FALSE)))","v":""}]
[null,null,null,{"$f":"IF(C15=\"\",\"\",IF(C6=2018,VLOOKUP(C15,'2018 Eligible List'!A:G,2,FALSE),VLOOKUP(C15,'2024 Eligible List'!A:G,2,FALSE)))","v":""},{"$f":"IF(C15=\"\",\"\",IF(C6=2018,VLOOKUP(C15,'2018 Eligible List'!A:G,3,FALSE),VLOOKUP(C15,'2024 Eligible List'!A:G,3,FALSE)))","v":""},{"$f":"IF(C15=\"\",\"\",IF($C$4=2018,VLOOKUP(C15,'2018 Eligible List'!A:G,4,FALSE),VLOOKUP(C15,'2024 Eligible List'!A:G,4,FALSE)))","v":""}]
[null,null,null,{"$f":"IF(C16=\"\",\"\",IF(C7=2018,VLOOKUP(C16,'2018 Eligible List'!A:G,2,FALSE),VLOOKUP(C16,'2024 Eligible List'!A:G,2,FALSE)))","v":""},{"$f":"IF(C16=\"\",\"\",IF(C7=2018,VLOOKUP(C16,'2018 Eligible List'!A:G,3,FALSE),VLOOKUP(C16,'2024 Eligible List'!A:G,3,FALSE)))","v":""},{"$f":"IF(C16=\"\",\"\",IF($C$4=2018,VLOOKUP(C16,'2018 Eligible List'!A:G,4,FALSE),VLOOKUP(C16,'2024 Eligible List'!A:G,4,FALSE)))","v":""}]
[null,null,null,{"$f":"IF(C17=\"\",\"\",IF(C8=2018,VLOOKUP(C17,'2018 Eligible List'!A:G,2,FALSE),VLOOKUP(C17,'2024 Eligible List'!A:G,2,FALSE)))","v":""},{"$f":"IF(C17=\"\",\"\",IF(C8=2018,VLOOKUP(C17,'2018 Eligible List'!A:G,3,FALSE),VLOOKUP(C17,'2024 Eligible List'!A:G,3,FALSE)))","v":""},{"$f":"IF(C17=\"\",\"\",IF($C$4=2018,VLOOKUP(C17,'2018 Eligible List'!A:G,4,FALSE),VLOOKUP(C17,'2024 Eligible List'!A:G,4,FALSE)))","v":""}]
[null,null,null,{"$f":"IF(C18=\"\",\"\",IF(C9=2018,VLOOKUP(C18,'2018 Eligible List'!A:G,2,FALSE),VLOOKUP(C18,'2024 Eligible List'!A:G,2,FALSE)))","v":""},{"$f":"IF(C18=\"\",\"\",IF(C9=2018,VLOOKUP(C18,'2018 Eligible List'!A:G,3,FALSE),VLOOKUP(C18,'2024 Eligible List'!A:G,3,FALSE)))","v":""},{"$f":"IF(C18=\"\",\"\",IF($C$4=2018,VLOOKUP(C18,'2018 Eligible List'!A:G,4,FALSE),VLOOKUP(C18,'2024 Eligible List'!A:G,4,FALSE)))","v":""}]
[null,null,null,{"$f":"IF(C19=\"\",\"\",IF(C10=2018,VLOOKUP(C19,'2018 Eligible List'!A:G,2,FALSE),VLOOKUP(C19,'2024 Eligible List'!A:G,2,FALSE)))","v":""},{"$f":"IF(C19=\"\",\"\",IF(C10=2018,VLOOKUP(C19,'2018 Eligible List'!A:G,3,FALSE),VLOOKUP(C19,'2024 Eligible List'!A:G,3,FALSE)))","v":""},{"$f":"IF(C19=\"\",\"\",IF($C$4=2018,VLOOKUP(C19,'2018 Eligible List'!A:G,4,FALSE),VLOOKUP(C19,'2024 Eligible List'!A:G,4,FALSE)))","v":""}]
[null,null,null,{"$f":"IF(C20=\"\",\"\",IF(C11=2018,VLOOKUP(C20,'2018 Eligible List'!A:G,2,FALSE),VLOOKUP(C20,'2024 Eligible List'!A:G,2,FALSE)))","v":""},{"$f":"IF(C20=\"\",\"\",IF(C11=2018,VLOOKUP(C20,'2018 Eligible List'!A:G,3,FALSE),VLOOKUP(C20,'2024 Eligible List'!A:G,3,FALSE)))","v":""},{"$f":"IF(C20=\"\",\"\",IF($C$4=2018,VLOOKUP(C20,'2018 Eligible List'!A:G,4,FALSE),VLOOKUP(C20,'2024 Eligible List'!A:G,4,FALSE)))","v":""}]
[null,null,null,{"$f":"IF(C21=\"\",\"\",IF(C12=2018,VLOOKUP(C21,'2018 Eligible List'!A:G,2,FALSE),VLOOKUP(C21,'2024 Eligible List'!A:G,2,FALSE)))","v":""},{"$f":"IF(C21=\"\",\"\",IF(C12=2018,VLOOKUP(C21,'2018 Eligible List'!A:G,3,FALSE),VLOOKUP(C21,'2024 Eligible List'!A:G,3,FALSE)))","v":""},{"$f":"IF(C21=\"\",\"\",IF($C$4=2018,VLOOKUP(C21,'2018 Eligible List'!A:G,4,FALSE),VLOOKUP(C21,'2024 Eligible List'!A:G,4,FALSE)))","v":""}]
[null,null,null,{"$f":"IF(C22=\"\",\"\",IF(C13=2018,VLOOKUP(C22,'2018 Eligible List'!A:G,2,FALSE),VLOOKUP(C22,'2024 Eligible List'!A:G,2,FALSE)))","v":""},{"$f":"IF(C22=\"\",\"\",IF(C13=2018,VLOOKUP(C22,'2018 Eligible List'!A:G,3,FALSE),VLOOKUP(C22,'2024 Eligible List'!A:G,3,FALSE)))","v":""},{"$f":"IF(C22=\"\",\"\",IF($C$4=2018,VLOOKUP(C22,'2018 Eligible List'!A:G,4,FALSE),VLOOKUP(C22,'2024 Eligible List'!A:G,4,FALSE)))","v":""}]
[null,null,null,{"$f":"IF(C23=\"\",\"\",IF(C14=2018,VLOOKUP(C23,'2018 Eligible List'!A:G,2,FALSE),VLOOKUP(C23,'2024 Eligible List'!A:G,2,FALSE)))","v":""},{"$f":"IF(C23=\"\",\"\",IF(C14=2018,VLOOKUP(C23,'2018 Eligible List'!A:G,3,FALSE),VLOOKUP(C23,'2024 Eligible List'!A:G,3,FALSE)))","v":""},{"$f":"IF(C23=\"\",\"\",IF($C$4=2018,VLOOKUP(C23,'2018 Eligible List'!A:G,4,FALSE),VLOOKUP(C23,'2024 Eligible List'!A:G,4,FALSE)))","v":""}]
[null,null,null,{"$f":"IF(C24=\"\",\"\",IF(C15=2018,VLOOKUP(C24,'2018 Eligible List'!A:G,2,FALSE),VLOOKUP(C24,'2024 Eligible List'!A:G,2,FALSE)))","v":""},{"$f":"IF(C24=\"\",\"\",IF(C15=2018,VLOOKUP(C24,'2018 Eligible List'!A:G,3,FALSE),VLOOKUP(C24,'2024 Eligible List'!A:G,3,FALSE)))","v":""},{"$f":"IF(C24=\"\",\"\",IF($C$4=2018,VLOOKUP(C24,'2018 Eligible List'!A:G,4,FALSE),VLOOKUP(C24,'2024 Eligible List'!A:G,4,FALSE)))","v":""}]
[null,null,null,{"$f":"IF(C25=\"\",\"\",IF(C16=2018,VLOOKUP(C25,'2018 Eligible List'!A:G,2,FALSE),VLOOKUP(C25,'2024 Eligible List'!A:G,2,FALSE)))","v":""},{"$f":"IF(C25=\"\",\"\",IF(C16=2018,VLOOKUP(C25,'2018 Eligible List'!A:G,3,FALSE),VLOOKUP(C25,'2024 Eligible List'!A:G,3,FALSE)))","v":""},{"$f":"IF(C25=\"\",\"\",IF($C$4=2018,VLOOKUP(C25,'2018 Eligible List'!A:G,4,FALSE),VLOOKUP(C25,'2024 Eligible List'!A:G,4,FALSE)))","v":""}]
[null,null,null,{"$f":"IF(C26=\"\",\"\",IF(C17=2018,VLOOKUP(C26,'2018 Eligible List'!A:G,2,FALSE),VLOOKUP(C26,'2024 Eligible List'!A:G,2,FALSE)))","v":""},{"$f":"IF(C26=\"\",\"\",IF(C17=2018,VLOOKUP(C26,'2018 Eligible List'!A:G,3,FALSE),VLOOKUP(C26,'2024 Eligible List'!A:G,3,FALSE)))","v":""},{"$f":"IF(C26=\"\",\"\",IF($C$4=2018,VLOOKUP(C26,'2018 Eligible List'!A:G,4,FALSE),VLOOKUP(C26,'2024 Eligible List'!A:G,4,FALSE)))","v":""}]
[null,null,null,{"$f":"IF(C27=\"\",\"\",IF(C18=2018,VLOOKUP(C27,'2018 Eligible List'!A:G,2,FALSE),VLOOKUP(C27,'2024 Eligible List'!A:G,2,FALSE)))","v":""},{"$f":"IF(C27=\"\",\"\",IF(C18=2018,VLOOKUP(C27,'2018 Eligible List'!A:G,3,FALSE),VLOOKUP(C27,'2024 Eligible List'!A:G,3,FALSE)))","v":""},{"$f":"IF(C27=\"\",\"\",IF($C$4=2018,VLOOKUP(C27,'2018 Eligible List'!A:G,4,FALSE),VLOOKUP(C27,'2024 Eligible List'!A:G,4,FALSE)))","v":""}]
[null,null,null,{"$f":"IF(C28=\"\",\"\",IF(C19=2018,VLOOKUP(C28,'2018 Eligible List'!A:G,2,FALSE),VLOOKUP(C28,'2024 Eligible List'!A:G,2,FALSE)))","v":""},{"$f":"IF(C28=\"\",\"\",IF(C19=2018,VLOOKUP(C28,'2018 Eligible List'!A:G,3,FALSE),VLOOKUP(C28,'2024 Eligible List'!A:G,3,FALSE)))","v":""},{"$f":"IF(C28=\"\",\"\",IF($C$4=2018,VLOOKUP(C28,'2018 Eligible List'!A:G,4,FALSE),VLOOKUP(C28,'2024 Eligible List'!A:G,4,FALSE)))","v":""}]
[null,null,null,{"$f":"IF(C29=\"\",\"\",IF(C20=2018,VLOOKUP(C29,'2018 Eligible List'!A:G,2,FALSE),VLOOKUP(C29,'2024 Eligible List'!A:G,2,FALSE)))","v":""},{"$f":"IF(C29=\"\",\"\",IF(C20=2018,VLOOKUP(C29,'2018 Eligible List'!A:G,3,FALSE),VLOOKUP(C29,'2024 Eligible List'!A:G,3,FALSE)))","v":""},{"$f":"IF(C29=\"\",\"\",IF($C$4=2018,VLOOKUP(C29,'2018 Eligible List'!A:G,4,FALSE),VLOOKUP(C29,'2024 Eligible List'!A:G,4,FALSE)))","v":""}]
[null,null,null,{"$f":"IF(C30=\"\",\"\",IF(C21=2018,VLOOKUP(C30,'2018 Eligible List'!A:G,2,FALSE),VLOOKUP(C30,'2024 Eligible List'!A:G,2,FALSE)))","v":""},{"$f":"IF(C30=\"\",\"\",IF(C21=2018,VLOOKUP(C30,'2018 Eligible List'!A:G,3,FALSE),VLOOKUP(C30,'2024 Eligible List'!A:G,3,FALSE)))","v":""},{"$f":"IF(C30=\"\",\"\",IF($C$4=2018,VLOOKUP(C30,'2018 Eligible List'!A:G,4,FALSE),VLOOKUP(C30,'2024 Eligible List'!A:G,4,FALSE)))","v":""}]
[null,null,null,{"$f":"IF(C31=\"\",\"\",IF(C22=2018,VLOOKUP(C31,'2018 Eligible List'!A:G,2,FALSE),VLOOKUP(C31,'2024 Eligible List'!A:G,2,FALSE)))","v":""},{"$f":"IF(C31=\"\",\"\",IF(C22=2018,VLOOKUP(C31,'2018 Eligible List'!A:G,3,FALSE),VLOOKUP(C31,'2024 Eligible List'!A:G,3,FALSE)))","v":""},{"$f":"IF(C31=\"\",\"\",IF($C$4=2018,VLOOKUP(C31,'2018 Eligible List'!A:G,4,FALSE),VLOOKUP(C31,'2024 Eligible List'!A:G,4,FALSE)))","v":""}]
[null,null,null,{"$f":"IF(C32=\"\",\"\",IF(C23=2018,VLOOKUP(C32,'2018 Eligible List'!A:G,2,FALSE),VLOOKUP(C32,'2024 Eligible List'!A:G,2,FALSE)))","v":""},{"$f":"IF(C32=\"\",\"\",IF(C23=2018,VLOOKUP(C32,'2018 Eligible List'!A:G,3,FALSE),VLOOKUP(C32,'2024 Eligible List'!A:G,3,FALSE)))","v":""},{"$f":"IF(C32=\"\",\"\",IF($C$4=2018,VLOOKUP(C32,'2018 Eligible List'!A:G,4,FALSE),VLOOKUP(C32,'2024 Eligible List'!A:G,4,FALSE)))","v":""}]
[null,null,null,{"$f":"IF(C33=\"\",\"\",IF(C24=2018,VLOOKUP(C33,'2018 Eligible List'!A:G,2,FALSE),VLOOKUP(C33,'2024 Eligible List'!A:G,2,FALSE)))","v":""},{"$f":"IF(C33=\"\",\"\",IF(C24=2018,VLOOKUP(C33,'2018 Eligible List'!A:G,3,FALSE),VLOOKUP(C33,'2024 Eligible List'!A:G,3,FALSE)))","v":""},{"$f":"IF(C33=\"\",\"\",IF($C$4=2018,VLOOKUP(C33,'2018 Eligible List'!A:G,4,FALSE),VLOOKUP(C33,'2024 Eligible List'!A:G,4,FALSE)))","v":""}]
[null,null,null,{"$f":"IF(C34=\"\",\"\",IF(C25=2018,VLOOKUP(C34,'2018 Eligible List'!A:G,2,FALSE),VLOOKUP(C34,'2024 Eligible List'!A:G,2,FALSE)))","v":""},{"$f":"IF(C34=\"\",\"\",IF(C25=2018,VLOOKUP(C34,'2018 Eligible List'!A:G,3,FALSE),VLOOKUP(C34,'2024 Eligible List'!A:G,3,FALSE)))","v":""},{"$f":"IF(C34=\"\",\"\",IF($C$4=2018,VLOOKUP(C34,'2018 Eligible List'!A:G,4,FALSE),VLOOKUP(C34,'2024 Eligible List'!A:G,4,FALSE)))","v":""}]
[null,"Signature  (Print and Sign Your Name)",null,"Firm or Corporation"]
[null,"PRINT NAME"]
[null,"SIGN NAME"]
[null,"Date:",null,"Vendor Number"]

{"sheet":"2018 Eligible List","index":1,"n_rows":140,"n_cols":7,"rows_kept":140,"cut":false,"hidden":false,"merged":[]}
["Item Number and Long Description","Item Number","Long Description","Category","Unit of Measure","Section Number","Category Description"]
[{"$f":"CONCATENATE(B2,\" - \",C2)","v":"1735000000-E - REPAIR OF JOINTED CONCRETE    PAVEMENT SLABS,"},"1735000000-E","REPAIR OF JOINTED CONCRETE    PAVEMENT SLABS,",1,"Square Yards",723,"Paving"]
[{"$f":"CONCATENATE(B3,\" - \",C3)","v":"1847000000-E - ***** PORT CEM CONC PAVEMENT,THROUGH LANES (WITH DOWELS),\""},"1847000000-E","***** PORT CEM CONC PAVEMENT,THROUGH LANES (WITH DOWELS),\"",1,"Square Yards",710,"Paving"]
["1858000000-E - ***** PORT CEM CONC PAVEMENT,RAMPS (WITH DOWELS),\"","1858000000-E","***** PORT CEM CONC PAVEMENT,RAMPS (WITH DOWELS),\"",1,"Square Yards",710,"Paving"]
["2703000000-E - CONCRETE BARRIER, TYPE *******,","2703000000-E","CONCRETE BARRIER, TYPE *******,",1,"Linear Feet",854,"Paving"]
["2710000000-N - CONCRETE BARRIER TRANSITION   SECTION,","2710000000-N","CONCRETE BARRIER TRANSITION   SECTION,",1,"Each",854,"Paving"]
["2717000000-E - VARIABLE HEIGHT CONCRETE BAR- RIER, TYPE ************,","2717000000-E","VARIABLE HEIGHT CONCRETE BAR- RIER, TYPE ************,",1,"Linear Feet",854,"Paving"]
["3000000000-N - IMPACT ATTENUATOR UNIT, TYPE  350,","3000000000-N","IMPACT ATTENUATOR UNIT, TYPE  350,",4,"Each",9000,"Guardrail (GR)"]
["3001000000-N - IMPACT ATTENUATOR UNITS, TYPE  TL-3,","3001000000-N","IMPACT ATTENUATOR UNITS, TYPE  TL-3,",4,"Each",9000,"Guardrail (GR)"]
["3001500000-N - IMPACT ATTENUATOR UNITS, TYPE  TL-2,","3001500000-N","IMPACT ATTENUATOR UNITS, TYPE  TL-2,",4,"Each",9000,"Guardrail (GR)"]
["3030000000-E - STEEL BEAM GUARDRAIL,","3030000000-E","STEEL BEAM GUARDRAIL,",4,"Linear Feet",862,"Guardrail (GR)"]
["3045000000-E - STEEL BEAM GUARDRAIL, SHOP    CURVED,","3045000000-E","STEEL BEAM GUARDRAIL, SHOP    CURVED,",4,"Linear Feet",862,"Guardrail (GR)"]
["3060000000-E - STEEL BEAM GUARDRAIL, DOUBLE  FACED,","3060000000-E","STEEL BEAM GUARDRAIL, DOUBLE  FACED,",4,"Linear Feet",862,"Guardrail (GR)"]
["3075000000-E - TRIPLE CORRUGATED STEEL BM    GUARDRAIL,","3075000000-E","TRIPLE CORRUGATED STEEL BM    GUARDRAIL,",4,"Linear Feet",862,"Guardrail (GR)"]
["3090000000-N - TRIPLE CORRUGATED STEEL BEAMGUARDRAIL TERMINAL SECTIONS,","3090000000-N","TRIPLE CORRUGATED STEEL BEAMGUARDRAIL TERMINAL SECTIONS,",4,"Each",862,"Guardrail (GR)"]
["3105000000-N - STEEL BEAM GUARDRAIL TERMINAL SECTIONS,","3105000000-N","STEEL BEAM GUARDRAIL TERMINAL SECTIONS,",4,"Each",862,"Guardrail (GR)"]
["3120000000-E - 20 TUBULAR TRIPLE CORRUGATEDSTEEL BEAM GUARDRAIL,\"","3120000000-E","20 TUBULAR TRIPLE CORRUGATEDSTEEL BEAM GUARDRAIL,\"",4,"Linear Feet",862,"Guardrail (GR)"]
["3135000000-N - W-TR STEEL BEAM GUARDRAILTRANSITION SECTIONS,","3135000000-N","W-TR STEEL BEAM GUARDRAILTRANSITION SECTIONS,",4,"Each",862,"Guardrail (GR)"]
["3140000000-E - 25' CLEAR SPAN GUARDRAIL SEC- TIONS,","3140000000-E","25' CLEAR SPAN GUARDRAIL SEC- TIONS,",4,"Each",862,"Guardrail (GR)"]
["3145000000-E - EXTRA LENGTH GUARDRAIL POST   (**' STEEL),","3145000000-E","EXTRA LENGTH GUARDRAIL POST   (**' STEEL),",4,"Each",862,"Guardrail (GR)"]
["3150000000-N - ADDITIONAL GUARDRAIL POSTS,","3150000000-N","ADDITIONAL GUARDRAIL POSTS,",4,"Each",862,"Guardrail (GR)"]
["3165500000-N - GUARDRAIL END UNITS, TYPE     ************,","3165500000-N","GUARDRAIL END UNITS, TYPE     ************,",4,"Each",862,"Guardrail (GR)"]
["3195000000-N - GUARDRAIL END UNITS, TYPE     AT-1,","3195000000-N","GUARDRAIL END UNITS, TYPE     AT-1,",4,"Each",863,"Guardrail (GR)"]
["3210000000-N - GUARDRAIL END UNITS, TYPE     CAT-1,","3210000000-N","GUARDRAIL END UNITS, TYPE     CAT-1,",4,"Each",862,"Guardrail (GR)"]
["3215000000-N - GUARDRAIL ANCHOR UNITS, TYPE  III,","3215000000-N","GUARDRAIL ANCHOR UNITS, TYPE  III,",4,"Each",9000,"Guardrail (GR)"]
["3287000000-N - GUARDRAIL END UNITS, TYPE TL-3,","3287000000-N","GUARDRAIL END UNITS, TYPE TL-3,",4,"Each",9000,"Guardrail (GR)"]
["3288000000-N - GUARDRAIL END UNITS, TYPE TL-2,","3288000000-N","GUARDRAIL END UNITS, TYPE TL-2,",4,"Each",9000,"Guardrail (GR)"]
["3289000000-N - GUARDRAIL END UNITS, TYPE     MEDIAN TL-3,","3289000000-N","GUARDRAIL END UNITS, TYPE     MEDIAN TL-3,",4,"Each",9000,"Guardrail (GR)"]
["3317000000-N - GUARDRAIL ANCHOR UNITS, TYPE  B-77,","3317000000-N","GUARDRAIL ANCHOR UNITS, TYPE  B-77,",4,"Each",9000,"Guardrail (GR)"]
["3319000000-N - GUARDRAIL ANCHOR UNITS, TYPE  B-83,","3319000000-N","GUARDRAIL ANCHOR UNITS, TYPE  B-83,",4,"Each",9000,"Guardrail (GR)"]
["3389200000-E - CABLE GUIDERAIL,","3389200000-E","CABLE GUIDERAIL,",4,"Linear Feet",865,"Guardrail (GR)"]
["3389400000-E - DOUBLE FACED CABLE GUIDERAIL,","3389400000-E","DOUBLE FACED CABLE GUIDERAIL,",4,"Linear Feet",865,"Guardrail (GR)"]
["3389500000-N - ADDITIONAL GUIDERAIL POSTS,","3389500000-N","ADDITIONAL GUIDERAIL POSTS,",4,"Each",865,"Guardrail (GR)"]
["3500000000-E - WOVEN WIRE FENCE, ** FABRIC,\"","3500000000-E","WOVEN WIRE FENCE, ** FABRIC,\"",5,"Linear Feet",866,"Fence(F)"]
["3503000000-E - WOVEN WIRE FENCE, 47 FABRIC,\"","3503000000-E","WOVEN WIRE FENCE, 47 FABRIC,\"",5,"Linear Feet",866,"Fence(F)"]
["3518000000-E - CHAIN LINK FENCE, ** FABRIC  WITH REDWOOD PICKETS,\"","3518000000-E","CHAIN LINK FENCE, ** FABRIC  WITH REDWOOD PICKETS,\"",5,"Linear Feet",9000,"Fence(F)"]
["3521000000-E - VINYL COATED CHAIN LINK FENCE,** FABRIC WITH REDWOOD PIC-KETS,\"","3521000000-E","VINYL COATED CHAIN LINK FENCE,** FABRIC WITH REDWOOD PIC-KETS,\"",5,"Linear Feet",9000,"Fence(F)"]
["3524000000-E - VINYL COATED CHAIN LINK FENCE,** FABRIC,\"","3524000000-E","VINYL COATED CHAIN LINK FENCE,** FABRIC,\"",5,"Linear Feet",9000,"Fence(F)"]
["3527000000-E - CHAIN LINK FENCE, ** FABRIC, GUARDRAIL MOUNTED,\"","3527000000-E","CHAIN LINK FENCE, ** FABRIC, GUARDRAIL MOUNTED,\"",5,"Linear Feet",9000,"Fence(F)"]
["3530000000-E - CHAIN LINK FENCE, ** FABRIC  WITH 1\" MESH,\"","3530000000-E","CHAIN LINK FENCE, ** FABRIC  WITH 1\" MESH,\"",5,"Linear Feet",9000,"Fence(F)"]
["3533000000-E - CHAIN LINK FENCE, ** FABRIC,\"","3533000000-E","CHAIN LINK FENCE, ** FABRIC,\"",5,"Linear Feet",866,"Fence(F)"]
["3536000000-E - CHAIN LINK FENCE, 48 FABRIC,\"","3536000000-E","CHAIN LINK FENCE, 48 FABRIC,\"",5,"Linear Feet",866,"Fence(F)"]
["3539000000-E - METAL LINE POSTS FOR ** CHAINLINK FENCE,\"","3539000000-E","METAL LINE POSTS FOR ** CHAINLINK FENCE,\"",5,"Each",866,"Fence(F)"]
["3542000000-E - METAL LINE POSTS FOR 48 CHAINLINK FENCE,\"","3542000000-E","METAL LINE POSTS FOR 48 CHAINLINK FENCE,\"",5,"Each",866,"Fence(F)"]
["3545000000-E - METAL TERMINAL POSTS FOR **  CHAIN LINK FENCE,\"","3545000000-E","METAL TERMINAL POSTS FOR **  CHAIN LINK FENCE,\"",5,"Each",866,"Fence(F)"]
["3548000000-E - METAL TERMINAL POSTS FOR 48  CHAIN LINK FENCE,\"","3548000000-E","METAL TERMINAL POSTS FOR 48  CHAIN LINK FENCE,\"",5,"Each",866,"Fence(F)"]
["3551000000-E - METAL GATE POSTS FOR ** CHAINLINK FENCE, SINGLE GATE,\"","3551000000-E","METAL GATE POSTS FOR ** CHAINLINK FENCE, SINGLE GATE,\"",5,"Each",866,"Fence(F)"]
["3554000000-E - METAL GATE POSTS FOR ** CHAINLINK FENCE, DOUBLE GATE,\"","3554000000-E","METAL GATE POSTS FOR ** CHAINLINK FENCE, DOUBLE GATE,\"",5,"Each",866,"Fence(F)"]
["4057000000-E - OVERHEAD FOOTING,","4057000000-E","OVERHEAD FOOTING,",1,"Cubic Yards",9000,"Signing(S)"]
["4060000000-E - SUPPORTS, BREAKAWAY STEEL BEAM,","4060000000-E","SUPPORTS, BREAKAWAY STEEL BEAM,",5,"Pounds",903,"Signing(S)"]
["4066000000-E - SUPPORTS, SIMPLE STEEL BEAM,","4066000000-E","SUPPORTS, SIMPLE STEEL BEAM,",5,"Pounds",903,"Signing(S)"]
["4072000000-E - SUPPORTS, 3-LB STEEL U-CHANNEL,","4072000000-E","SUPPORTS, 3-LB STEEL U-CHANNEL,",5,"Linear Feet",903,"Signing(S)"]
["4078000000-E - SUPPORTS, 2-LB STEEL U-CHANNEL,","4078000000-E","SUPPORTS, 2-LB STEEL U-CHANNEL,",5,"Each",903,"Signing(S)"]
["4079000000-N - SUPPORTS, BARRIER (SMALL),","4079000000-N","SUPPORTS, BARRIER (SMALL),",5,"Each",903,"Signing(S)"]
["4080000000-N - SUPPORTS, BARRIER (LARGE),","4080000000-N","SUPPORTS, BARRIER (LARGE),",5,"Each",903,"Signing(S)"]
["4080200000-E - SUPPORTS, STEEL SQUARE TUBE,","4080200000-E","SUPPORTS, STEEL SQUARE TUBE,",6,"Linear Feet",903,"Signing(S)"]
["4082100000-N - SUPPORTS, OVERHEAD SIGN STRUC-TURE  AT STA ******,","4082100000-N","SUPPORTS, OVERHEAD SIGN STRUC-TURE  AT STA ******,",6,"Lump Sum",906,"Signing(S)"]
["4082110000-N - SUPPORTS, OVERHEAD DYNAMIC    MESSAGE SIGN STRUCTURE AT STA*******,","4082110000-N","SUPPORTS, OVERHEAD DYNAMIC    MESSAGE SIGN STRUCTURE AT STA*******,",6,"Lump Sum",9000,"Signing(S)"]
["5000000000-E - ***' HIGH MOUNT STANDARD,","5000000000-E","***' HIGH MOUNT STANDARD,",6,"Each",1401,"Lighting"]
["5005000000-E - 80' HIGH MOUNT STANDARD,","5005000000-E","80' HIGH MOUNT STANDARD,",6,"Each",1401,"Lighting"]
["5010000000-E - 100' HIGH MOUNT STANDARD,","5010000000-E","100' HIGH MOUNT STANDARD,",6,"Each",1401,"Lighting"]
["5015000000-E - 120' HIGH MOUNT STANDARD,","5015000000-E","120' HIGH MOUNT STANDARD,",6,"Each",1401,"Lighting"]
["5035000000-N - LIGHT STANDARDS, TYPE FRPS    ************,","5035000000-N","LIGHT STANDARDS, TYPE FRPS    ************,",6,"Each",1404,"Lighting"]
["5040000000-N - LIGHT STANDARDS, TYPE FRPT    ************,","5040000000-N","LIGHT STANDARDS, TYPE FRPT    ************,",6,"Each",1404,"Lighting"]
["5045000000-N - LIGHT STANDARDS, TYPE MTLS    ************,","5045000000-N","LIGHT STANDARDS, TYPE MTLS    ************,",6,"Each",1404,"Lighting"]
["5050000000-N - LIGHT STANDARDS, TYPE MTLT    ************,","5050000000-N","LIGHT STANDARDS, TYPE MTLT    ************,",6,"Each",1404,"Lighting"]
[{"$f":"CONCATENATE(B67,\" - \",C67)","v":"5055000000-N - LIGHT STANDARDS, TYPE MISC    ************,"},"5055000000-N","LIGHT STANDARDS, TYPE MISC    ************,",6,"Each",1404,"Lighting"]
["5060000000-N - POST TOP STANDARD, TYPE AB    ************,","5060000000-N","POST TOP STANDARD, TYPE AB    ************,",6,"Each",9000,"Lighting"]
["5065000000-N - POST TOP STANDARD, TYPE EB    ************,","5065000000-N","POST TOP STANDARD, TYPE EB    ************,",6,"Each",9000,"Lighting"]
["5835000000-E - ** ENCASEMENT PIPE,\"","5835000000-E","** ENCASEMENT PIPE,\"",2,"Linear Feet",1540,"Utility(U)"]
["5835400000-E - 6 ENCASEMENT PIPE,\"","5835400000-E","6 ENCASEMENT PIPE,\"",2,"Linear Feet",1540,"Utility(U)"]
["5835600000-E - 12 ENCASEMENT PIPE,\"","5835600000-E","12 ENCASEMENT PIPE,\"",2,"Linear Feet",1540,"Utility(U)"]
["5835700000-E - 16 ENCASEMENT PIPE,\"","5835700000-E","16 ENCASEMENT PIPE,\"",2,"Linear Feet",1540,"Utility(U)"]
["5835800000-E - 18 ENCASEMENT PIPE,\"","5835800000-E","18 ENCASEMENT PIPE,\"",2,"Linear Feet",1540,"Utility(U)"]
["5835900000-E - 20 ENCASEMENT PIPE,\"","5835900000-E","20 ENCASEMENT PIPE,\"",2,"Linear Feet",1540,"Utility(U)"]
["5836000000-E - 24 ENCASEMENT PIPE,\"","5836000000-E","24 ENCASEMENT PIPE,\"",2,"Linear Feet",1540,"Utility(U)"]
["5836200000-E - 30 ENCASEMENT PIPE,\"","5836200000-E","30 ENCASEMENT PIPE,\"",2,"Linear Feet",1540,"Utility(U)"]
["5836400000-E - 36 ENCASEMENT PIPE,\"","5836400000-E","36 ENCASEMENT PIPE,\"",2,"Linear Feet",1540,"Utility(U)"]
["7576000000-N - METAL STRAIN SIGNAL POLE,","7576000000-N","METAL STRAIN SIGNAL POLE,",6,"Each",9000,"Signals(Z)"]
["7588000000-N - METAL POLE WITH SINGLE MAST   ARM,","7588000000-N","METAL POLE WITH SINGLE MAST   ARM,",6,"Each",9000,"Signals(Z)"]
["7590000000-N - METAL POLE WITH DUAL MAST ARM,","7590000000-N","METAL POLE WITH DUAL MAST ARM,",6,"Each",9000,"Signals(Z)"]
["8063000000-N - PRECAST REINFORCED CONC BOX   CULVERT AT STA ************,","8063000000-N","PRECAST REINFORCED CONC BOX   CULVERT AT STA ************,",1,"Lump Sum",9000,"Culvert(C)"]
["8111000000-E - PERMANENT STEEL CASINGS FOR **'-**\" DIA DRILLED PIER","8111000000-E","PERMANENT STEEL CASINGS FOR **'-**\" DIA DRILLED PIER",2,"Linear Feet",411,"Bridge(B)"]
["8111200000-E - PERMANENT STEEL CASINGS FOR 3'-0\" DIA DRILLED PIER","8111200000-E","PERMANENT STEEL CASINGS FOR 3'-0\" DIA DRILLED PIER",2,"Linear Feet",411,"Bridge(B)"]
["8111400000-E - PERMANENT STEEL CASINGS FOR 3'-6\" DIA DRILLED PIER","8111400000-E","PERMANENT STEEL CASINGS FOR 3'-6\" DIA DRILLED PIER",2,"Linear Feet",411,"Bridge(B)"]
["8111600000-E - PERMANENT STEEL CASINGS FOR 4'-0\" DIA DRILLED PIER","8111600000-E","PERMANENT STEEL CASINGS FOR 4'-0\" DIA DRILLED PIER",2,"Linear Feet",411,"Bridge(B)"]
["8147000000-E - REINFORCED CONCRETE DECK SLAB,","8147000000-E","REINFORCED CONCRETE DECK SLAB,",1,"Square Feet",420,"Bridge(B)"]
["8154000000-E - REINFORCED CONCRETE DECK SLAB (SAND LIGHTWEIGHT CONC),","8154000000-E","REINFORCED CONCRETE DECK SLAB (SAND LIGHTWEIGHT CONC),",1,"Square Feet",420,"Bridge(B)"]
["8210000000-N - BRIDGE APPROACH SLABS, STATION************,","8210000000-N","BRIDGE APPROACH SLABS, STATION************,",1,"Lump Sum",422,"Bridge(B)"]
["8217000000-E - REINFORCING STEEL (BRIDGE),","8217000000-E","REINFORCING STEEL (BRIDGE),",1,"Pounds",425,"Bridge(B)"]
["8224000000-E - EPOXY COATED REINFORCING STEEL(BRIDGE),","8224000000-E","EPOXY COATED REINFORCING STEEL(BRIDGE),",1,"Pounds",425,"Bridge(B)"]
["8226000000-E - EPOXY COATED SPIRAL COLUMN RE-INFORCING STEEL (BRIDGE),","8226000000-E","EPOXY COATED SPIRAL COLUMN RE-INFORCING STEEL (BRIDGE),",1,"Pounds",425,"Bridge(B)"]
["8238000000-E - SPIRAL COLUMN REINFORCING     STEEL (BRIDGE),","8238000000-E","SPIRAL COLUMN REINFORCING     STEEL (BRIDGE),",1,"Pounds",425,"Bridge(B)"]
["8245000000-E - REINFORCING STEEL (CULVERT),","8245000000-E","REINFORCING STEEL (CULVERT),",1,"Pounds",425,"Culvert(C)"]
["8248000000-E - EPOXY COATED REINFORCING STEEL(CULVERT),","8248000000-E","EPOXY COATED REINFORCING STEEL(CULVERT),",1,"Pounds",425,"Culvert(C)"]
["8252000000-E - REINFORCING STEEL (RETAINING  WALL),","8252000000-E","REINFORCING STEEL (RETAINING  WALL),",1,"Pounds",425,"Walls(W)"]
["8256000000-E - TYPE III PRESRESSED CONCRETE  DECK GIRDER,","8256000000-E","TYPE III PRESRESSED CONCRETE  DECK GIRDER,",7,"Linear Feet",9000,"Bridge(B)"]
["8259000000-E - 36 PRESTRESSED CONCRETE GIR- DERS,\"","8259000000-E","36 PRESTRESSED CONCRETE GIR- DERS,\"",7,"Linear Feet",430,"Bridge(B)"]
["8262000000-E - 45 PRESTRESSED CONCRETE GIR- DERS,\"","8262000000-E","45 PRESTRESSED CONCRETE GIR- DERS,\"",7,"Linear Feet",430,"Bridge(B)"]
["8265000000-E - 54 PRESTRESSED CONCRETE GIR- DERS,\"","8265000000-E","54 PRESTRESSED CONCRETE GIR- DERS,\"",7,"Linear Feet",430,"Bridge(B)"]
["8268000000-E - 63 PRESTRESSED CONCRETE GIR- DERS,\"","8268000000-E","63 PRESTRESSED CONCRETE GIR- DERS,\"",7,"Linear Feet",430,"Bridge(B)"]
["8271000000-E - 72 PRESTRESSED CONCRETE GIR- DERS,\"","8271000000-E","72 PRESTRESSED CONCRETE GIR- DERS,\"",7,"Linear Feet",430,"Bridge(B)"]
["8274000000-E - MODIFIED 63 PRESTRESSED CONC GIRDERS,\"","8274000000-E","MODIFIED 63 PRESTRESSED CONC GIRDERS,\"",7,"Linear Feet",430,"Bridge(B)"]
["8277000000-E - MODIFIED 72 PRESTRESSED CONC GIRDERS,\"","8277000000-E","MODIFIED 72 PRESTRESSED CONC GIRDERS,\"",7,"Linear Feet",430,"Bridge(B)"]
["8280000000-E - APPROX ........ LBS STRUCTURALSTEEL,","8280000000-E","APPROX ........ LBS STRUCTURALSTEEL,",2,"Lump Sum",440,"Bridge(B)"]
["8329000000-E - 12 PRESTRESSED CONCRETE PILES,\"","8329000000-E","12 PRESTRESSED CONCRETE PILES,\"",7,"Linear Feet",450,"Bridge(B)"]
["8333000000-E - 16 PRESTRESSED CONCRETE PILES,\"","8333000000-E","16 PRESTRESSED CONCRETE PILES,\"",7,"Linear Feet",450,"Bridge(B)"]
["8336000000-E - 20 PRESTRESSED CONCRETE PILES,\"","8336000000-E","20 PRESTRESSED CONCRETE PILES,\"",7,"Linear Feet",450,"Bridge(B)"]
["8343000000-E - 22 PRESTRESSED CONCRETE PILES,\"","8343000000-E","22 PRESTRESSED CONCRETE PILES,\"",7,"Linear Feet",450,"Bridge(B)"]
["8350000000-E - 24 PRESTRESSED CONCRETE PILES,\"","8350000000-E","24 PRESTRESSED CONCRETE PILES,\"",7,"Linear Feet",450,"Bridge(B)"]
["8353000000-E - 30 PRESTRESSED CONCRETE PILES,\"","8353000000-E","30 PRESTRESSED CONCRETE PILES,\"",7,"Linear Feet",450,"Bridge(B)"]
["8355000000-E - HP ***X*** STEEL PILES,","8355000000-E","HP ***X*** STEEL PILES,",3,"Linear Feet",450,"Bridge(B)"]
["8356000000-E - HP**X** GALVANIZED STEEL PILES,","8356000000-E","HP**X** GALVANIZED STEEL PILES,",3,"Linear Feet",450,"Bridge(B)"]
["8357000000-E - HP10X42 STEEL PILES,","8357000000-E","HP10X42 STEEL PILES,",3,"Linear Feet",450,"Bridge(B)"]
["8364000000-E - HP12X53 STEEL PILES,","8364000000-E","HP12X53 STEEL PILES,",3,"Linear Feet",450,"Bridge(B)"]
["8365000000-E - HP12X53 GALVANIZED STEEL PILES,","8365000000-E","HP12X53 GALVANIZED STEEL PILES,",3,"Linear Feet",450,"Bridge(B)"]
["8378000000-E - HP12X53 STEEL PILES (RETAININGWALL),","8378000000-E","HP12X53 STEEL PILES (RETAININGWALL),",3,"Linear Feet",450,"Walls(W)"]
["8384000000-E - HP14X73 STEEL PILES,","8384000000-E","HP14X73 STEEL PILES,",3,"Linear Feet",450,"Bridge(B)"]
["8384200000-E - HP14X73 GALVANIZED STEEL PILES,","8384200000-E","HP14X73 GALVANIZED STEEL PILES,",3,"Linear Feet",450,"Bridge(B)"]
["8385000000-E - PP ** X **** STEEL PILES,","8385000000-E","PP ** X **** STEEL PILES,",4,"Linear Feet",450,"Bridge(B)"]
["8385200000-E - PP ** X **** GALVANIZED STEEL PILES,","8385200000-E","PP ** X **** GALVANIZED STEEL PILES,",4,"Linear Feet",450,"Bridge(B)"]
["8386000000-E - PP 18 X 0.50 STEEL PILES,","8386000000-E","PP 18 X 0.50 STEEL PILES,",4,"Linear Feet",450,"Bridge(B)"]
["8387000000-E - PP 18 X 0.50 GALVANIZED STEEL PILES,","8387000000-E","PP 18 X 0.50 GALVANIZED STEEL PILES,",4,"Linear Feet",450,"Bridge(B)"]
["8430000000-E - SHEET PILE RETAINING WALLS,","8430000000-E","SHEET PILE RETAINING WALLS,",3,"Square Feet",452,"Walls(W)"]
["8483000000-E - 32 ALASKA RAIL,\"","8483000000-E","32 ALASKA RAIL,\"",4,"Linear Feet",460,"Bridge(B)"]
["8484000000-E - 42 OREGON RAIL,\"","8484000000-E","42 OREGON RAIL,\"",4,"Linear Feet",460,"Bridge(B)"]
["8496000000-E - ***** GALVANIZED STEEL PIPE  RAIL,\"","8496000000-E","***** GALVANIZED STEEL PIPE  RAIL,\"",4,"Linear Feet",460,"Bridge(B)"]
["8503000000-E - CONCRETE BARRIER RAIL,","8503000000-E","CONCRETE BARRIER RAIL,",1,"Linear Feet",460,"Bridge(B)"]
["8504000000-E - CONCRETE BARRIER RAIL WITH    MOMENT SLAB,","8504000000-E","CONCRETE BARRIER RAIL WITH    MOMENT SLAB,",1,"Linear Feet",460,"Bridge(B)"]
["8505000000-E - VERTICAL CONCRETE BARRIER RAIL,","8505000000-E","VERTICAL CONCRETE BARRIER RAIL,",1,"Linear Feet",460,"Bridge(B)"]
[{"$f":"CONCATENATE(B131,\" - \",C131)","v":"8510000000-E - CONCRETE MEDIAN BARRIER,"},"8510000000-E","CONCRETE MEDIAN BARRIER,",1,"Linear Feet",460,"Bridge(B)"]
["8752000000-E - CONCRETE BOX BEAMS,","8752000000-E","CONCRETE BOX BEAMS,",7,"Linear Feet",430,"Bridge(B)"]
["8753000000-E - 3'-0 X 2'-3\" PRESTRESSED CONCBOX BEAMS,\"","8753000000-E","3'-0 X 2'-3\" PRESTRESSED CONCBOX BEAMS,\"",7,"Linear Feet",430,"Bridge(B)"]
["8753100000-E - 3'-0 X 2'-9\" PRESTRESSED CONCBOX BEAMS,\"","8753100000-E","3'-0 X 2'-9\" PRESTRESSED CONCBOX BEAMS,\"",7,"Linear Feet",430,"Bridge(B)"]
["8753200000-E - 3'-0 X 3'-3\" PRESTRESSED CONCBOX BEAMS,\"","8753200000-E","3'-0 X 3'-3\" PRESTRESSED CONCBOX BEAMS,\"",7,"Linear Feet",430,"Bridge(B)"]
["8755000000-E - 3'-0 X 1'-6\" PRESTRESSED CONCCORED SLABS,\"","8755000000-E","3'-0 X 1'-6\" PRESTRESSED CONCCORED SLABS,\"",7,"Linear Feet",430,"Bridge(B)"]
["8762000000-E - 3'-0 X 1'-9\" PRESTRESSED CONCCORED SLABS,\"","8762000000-E","3'-0 X 1'-9\" PRESTRESSED CONCCORED SLABS,\"",7,"Linear Feet",430,"Bridge(B)"]
["8763000000-E - 3'-0 X 2'-0\" PRESTRESSED CONCCORED SLABS,\"","8763000000-E","3'-0 X 2'-0\" PRESTRESSED CONCCORED SLABS,\"",7,"Linear Feet",430,"Bridge(B)"]
["8802012000-E - PILE PANEL RETAINING WALLS,","8802012000-E","PILE PANEL RETAINING WALLS,",3,"Square Feet",9000,"Walls(W)"]
["8802014000-E - SOLDIER PILE RETAINING WALLS,","8802014000-E","SOLDIER PILE RETAINING WALLS,",3,"Square Feet",9000,"Walls(W)"]

{"sheet":"2024 Eligible List","index":2,"n_rows":215,"n_cols":7,"rows_kept":215,"cut":false,"hidden":false,"merged":[]}
["Item Number and Long Description","Item Number","Long Description","Category","Unit of Measure","Section Number","Category Description"]
[{"$f":"CONCATENATE(B2,\" - \",C2)","v":"1735000000-E - REPAIR OF JOINTED CONCRETE PAVEMENT SLABS"},"1735000000-E","REPAIR OF JOINTED CONCRETE PAVEMENT SLABS",1,"Square Yards",723,"Paving"]
[{"$f":"CONCATENATE(B3,\" - \",C3)","v":"1847000000-E - *****\" PORT CEM CONC PAVEMENT, THROUGH LANES (WITH DOWELS)"},"1847000000-E","*****\" PORT CEM CONC PAVEMENT, THROUGH LANES (WITH DOWELS)",1,"Square Yards",710,"Paving"]
[{"$f":"CONCATENATE(B4,\" - \",C4)","v":"1858000000-E - *****\" PORT CEM CONC PAVEMENT, RAMPS (WITH DOWELS)"},"1858000000-E","*****\" PORT CEM CONC PAVEMENT, RAMPS (WITH DOWELS)",1,"Square Yards",710,"Paving"]
["2703000000-E - CONCRETE BARRIER, TYPE *******","2703000000-E","CONCRETE BARRIER, TYPE *******",1,"Linear Feet",854,"Paving"]
["2710000000-N - CONCRETE BARRIER TRANSITION SECTION","2710000000-N","CONCRETE BARRIER TRANSITION SECTION",1,"Each",854,"Paving"]
["2717000000-E - VARIABLE HEIGHT CONCRETE BARRIER,\nTYPE ************","2717000000-E","VARIABLE HEIGHT CONCRETE BARRIER,\nTYPE ************",1,"Linear Feet",854,"Paving"]
["3000000000-N - IMPACT ATTENUATOR UNIT, TYPE 350","3000000000-N","IMPACT ATTENUATOR UNIT, TYPE 350",4,"Each",9000,"Guardrail (GR)"]
["3001000000-N - IMPACT ATTENUATOR UNITS, TYPE TL-3","3001000000-N","IMPACT ATTENUATOR UNITS, TYPE TL-3",4,"Each",9000,"Guardrail (GR)"]
["3001500000-N - IMPACT ATTENUATOR UNITS, TYPE TL-2","3001500000-N","IMPACT ATTENUATOR UNITS, TYPE TL-2",4,"Each",9000,"Guardrail (GR)"]
["3030000000-E - STEEL BEAM GUARDRAIL","3030000000-E","STEEL BEAM GUARDRAIL",4,"Linear Feet",862,"Guardrail (GR)"]
["3045000000-E - STEEL BEAM GUARDRAIL, SHOP CURVED","3045000000-E","STEEL BEAM GUARDRAIL, SHOP CURVED",4,"Linear Feet",862,"Guardrail (GR)"]
["3060000000-E - STEEL BEAM GUARDRAIL, DOUBLE FACED","3060000000-E","STEEL BEAM GUARDRAIL, DOUBLE FACED",4,"Linear Feet",862,"Guardrail (GR)"]
["3075000000-E - TRIPLE CORRUGATED STEEL BEAM GUARDRAIL","3075000000-E","TRIPLE CORRUGATED STEEL BEAM GUARDRAIL",4,"Linear Feet",862,"Guardrail (GR)"]
["3090000000-N - TRIPLE CORRUGATED STEEL BEAM GUARDRAIL TERMINAL SECTIONS","3090000000-N","TRIPLE CORRUGATED STEEL BEAM GUARDRAIL TERMINAL SECTIONS",4,"Each",862,"Guardrail (GR)"]
["3105000000-N - STEEL BEAM GUARDRAIL TERMINAL SECTIONS","3105000000-N","STEEL BEAM GUARDRAIL TERMINAL SECTIONS",4,"Each",862,"Guardrail (GR)"]
["3120000000-E - 20\" TUBULAR TRIPLE CORRUGATED STEEL BEAM GUARDRAIL","3120000000-E","20\" TUBULAR TRIPLE CORRUGATED STEEL BEAM GUARDRAIL",4,"Linear Feet",862,"Guardrail (GR)"]
["3135000000-N - W-TR STEEL BEAM GUARDRAIL TRANSITION SECTIONS","3135000000-N","W-TR STEEL BEAM GUARDRAIL TRANSITION SECTIONS",4,"Each",862,"Guardrail (GR)"]
["3140000000-E - 25' CLEAR SPAN GUARDRAIL SECTIONS","3140000000-E","25' CLEAR SPAN GUARDRAIL SECTIONS",4,"Each",862,"Guardrail (GR)"]
["3145000000-E - EXTRA LENGTH GUARDRAIL POST (**' STEEL)","3145000000-E","EXTRA LENGTH GUARDRAIL POST (**' STEEL)",4,"Each",862,"Guardrail (GR)"]
["3150000000-N - ADDITIONAL GUARDRAIL POSTS","3150000000-N","ADDITIONAL GUARDRAIL POSTS",4,"Each",862,"Guardrail (GR)"]
["3165500000-N - GUARDRAIL END UNITS, TYPE ************","3165500000-N","GUARDRAIL END UNITS, TYPE ************",4,"Each",862,"Guardrail (GR)"]
["3195000000-N - GUARDRAIL END UNITS, TYPE AT-1","3195000000-N","GUARDRAIL END UNITS, TYPE AT-1",4,"Each",862,"Guardrail (GR)"]
["3210000000-N - GUARDRAIL END UNITS, TYPE CAT-1","3210000000-N","GUARDRAIL END UNITS, TYPE CAT-1",4,"Each",862,"Guardrail (GR)"]
["3215000000-N - GUARDRAIL ANCHOR UNITS, TYPE III","3215000000-N","GUARDRAIL ANCHOR UNITS, TYPE III",4,"Each",862,"Guardrail (GR)"]
["3287000000-N - GUARDRAIL END UNITS, TYPE TL-3","3287000000-N","GUARDRAIL END UNITS, TYPE TL-3",4,"Each",862,"Guardrail (GR)"]
["3288000000-N - GUARDRAIL END UNITS, TYPE TL-2","3288000000-N","GUARDRAIL END UNITS, TYPE TL-2",4,"Each",862,"Guardrail (GR)"]
["3289000000-N - GUARDRAIL END UNITS, TYPE MEDIAN TL-3","3289000000-N","GUARDRAIL END UNITS, TYPE MEDIAN TL-3",4,"Each",862,"Guardrail (GR)"]
["3317000000-N - GUARDRAIL ANCHOR UNITS, TYPE B-77","3317000000-N","GUARDRAIL ANCHOR UNITS, TYPE B-77",4,"Each",862,"Guardrail (GR)"]
["3319000000-N - GUARDRAIL ANCHOR UNITS, TYPE B-83","3319000000-N","GUARDRAIL ANCHOR UNITS, TYPE B-83",4,"Each",862,"Guardrail (GR)"]
["3389200000-E - CABLE GUIDERAIL","3389200000-E","CABLE GUIDERAIL",4,"Linear Feet",865,"Guardrail (GR)"]
["3389400000-E - DOUBLE FACED CABLE GUIDERAIL","3389400000-E","DOUBLE FACED CABLE GUIDERAIL",4,"Linear Feet",865,"Guardrail (GR)"]
["3389500000-N - ADDITIONAL GUIDERAIL POSTS","3389500000-N","ADDITIONAL GUIDERAIL POSTS",4,"Each",865,"Guardrail (GR)"]
["3500000000-E - WOVEN WIRE FENCE, **\" FABRIC","3500000000-E","WOVEN WIRE FENCE, **\" FABRIC",5,"Linear Feet",866,"Fence(F)"]
["3503000000-E - WOVEN WIRE FENCE, 47\" FABRIC","3503000000-E","WOVEN WIRE FENCE, 47\" FABRIC",5,"Linear Feet",866,"Fence(F)"]
["3518000000-E - CHAIN LINK FENCE, **\" FABRIC WITH REDWOOD PICKETS","3518000000-E","CHAIN LINK FENCE, **\" FABRIC WITH REDWOOD PICKETS",5,"Linear Feet",9000,"Fence(F)"]
["3521000000-E - VINYL COATED CHAIN LINK FENCE, **\" FABRIC WITH REDWOOD PICKETS","3521000000-E","VINYL COATED CHAIN LINK FENCE, **\" FABRIC WITH REDWOOD PICKETS",5,"Linear Feet",9000,"Fence(F)"]
["3524000000-E - VINYL COATED CHAIN LINK FENCE, **\" FABRIC","3524000000-E","VINYL COATED CHAIN LINK FENCE, **\" FABRIC",5,"Linear Feet",9000,"Fence(F)"]
["3527000000-E - CHAIN LINK FENCE, **\" FABRIC, GUARDRAIL MOUNTED","3527000000-E","CHAIN LINK FENCE, **\" FABRIC, GUARDRAIL MOUNTED",5,"Linear Feet",9000,"Fence(F)"]
["3530000000-E - CHAIN LINK FENCE, **\" FABRIC WITH 1\" MESH","3530000000-E","CHAIN LINK FENCE, **\" FABRIC WITH 1\" MESH",5,"Linear Feet",9000,"Fence(F)"]
["3533000000-E - CHAIN LINK FENCE, **\" FABRIC","3533000000-E","CHAIN LINK FENCE, **\" FABRIC",5,"Linear Feet",866,"Fence(F)"]
["3536000000-E - CHAIN LINK FENCE, 48\" FABRIC","3536000000-E","CHAIN LINK FENCE, 48\" FABRIC",5,"Linear Feet",866,"Fence(F)"]
["3539000000-E - METAL LINE POSTS FOR **\" CHAIN LINK FENCE","3539000000-E","METAL LINE POSTS FOR **\" CHAIN LINK FENCE",5,"Each",866,"Fence(F)"]
["3542000000-E - METAL LINE POSTS FOR 48\" CHAIN LINK FENCE","3542000000-E","METAL LINE POSTS FOR 48\" CHAIN LINK FENCE",5,"Each",866,"Fence(F)"]
["3545000000-E - METAL TERMINAL POSTS FOR **\" CHAIN LINK FENCE","3545000000-E","METAL TERMINAL POSTS FOR **\" CHAIN LINK FENCE",5,"Each",866,"Fence(F)"]
["3548000000-E - METAL TERMINAL POSTS FOR 48\" CHAIN LINK FENCE","3548000000-E","METAL TERMINAL POSTS FOR 48\" CHAIN LINK FENCE",5,"Each",866,"Fence(F)"]
["3551000000-E - METAL GATE POSTS FOR **\" CHAIN LINK FENCE, SINGLE GATE","3551000000-E","METAL GATE POSTS FOR **\" CHAIN LINK FENCE, SINGLE GATE",5,"Each",866,"Fence(F)"]
["3554000000-E - METAL GATE POSTS FOR **\" CHAIN LINK FENCE, DOUBLE GATE","3554000000-E","METAL GATE POSTS FOR **\" CHAIN LINK FENCE, DOUBLE GATE",5,"Each",866,"Fence(F)"]
["4057000000-E - OVERHEAD FOOTING","4057000000-E","OVERHEAD FOOTING",1,"Cubic Yards",9000,"Signing(S)"]
["4060000000-E - SUPPORTS, BREAKAWAY STEEL BEAM","4060000000-E","SUPPORTS, BREAKAWAY STEEL BEAM",5,"Pounds",903,"Signing(S)"]
["4066000000-E - SUPPORTS, SIMPLE STEEL BEAM","4066000000-E","SUPPORTS, SIMPLE STEEL BEAM",5,"Pounds",903,"Signing(S)"]
["4072000000-E - SUPPORTS, 3-LB STEEL U-CHANNEL","4072000000-E","SUPPORTS, 3-LB STEEL U-CHANNEL",5,"Linear Feet",903,"Signing(S)"]
["4078000000-E - SUPPORTS, 2-LB STEEL U-CHANNEL","4078000000-E","SUPPORTS, 2-LB STEEL U-CHANNEL",5,"Each",903,"Signing(S)"]
["4079000000-N - SUPPORTS, BARRIER (SMALL)","4079000000-N","SUPPORTS, BARRIER (SMALL)",5,"Each",903,"Signing(S)"]
["4080000000-N - SUPPORTS, BARRIER (LARGE)","4080000000-N","SUPPORTS, BARRIER (LARGE)",5,"Each",903,"Signing(S)"]
["4080200000-E - SUPPORTS, STEEL SQUARE TUBE","4080200000-E","SUPPORTS, STEEL SQUARE TUBE",6,"Linear Feet",903,"Signing(S)"]
["4082110000-N - SUPPORTS, OVERHEAD DYNAMIC MESSAGE SIGN STRUCTURE AT STA\n*******","4082110000-N","SUPPORTS, OVERHEAD DYNAMIC MESSAGE SIGN STRUCTURE AT STA\n*******",6,"Lump Sum",9000,"Signing(S)"]
["4130000000-N - SUPPORTS, OVERHEAD SIGN STRUCTURE ******","4130000000-N","SUPPORTS, OVERHEAD SIGN STRUCTURE ******",6,"Lump Sum",906,"Signing(S)"]
["5000000000-E - ***' HIGH MOUNT STANDARD","5000000000-E","***' HIGH MOUNT STANDARD",6,"Each",1401,"Lighting"]
["5005000000-E - 80' HIGH MOUNT STANDARD","5005000000-E","80' HIGH MOUNT STANDARD",6,"Each",1401,"Lighting"]
["5010000000-E - 100' HIGH MOUNT STANDARD","5010000000-E","100' HIGH MOUNT STANDARD",6,"Each",1401,"Lighting"]
["5015000000-E - 120' HIGH MOUNT STANDARD","5015000000-E","120' HIGH MOUNT STANDARD",6,"Each",1401,"Lighting"]
["5045000000-N - LIGHT STANDARDS, TYPE MTLS\n************","5045000000-N","LIGHT STANDARDS, TYPE MTLS\n************",6,"Each",1404,"Lighting"]
["5050000000-N - LIGHT STANDARDS, TYPE MTLT\n************","5050000000-N","LIGHT STANDARDS, TYPE MTLT\n************",6,"Each",1404,"Lighting"]
["5055000000-N - LIGHT STANDARDS, TYPE MISC\n************","5055000000-N","LIGHT STANDARDS, TYPE MISC\n************",6,"Each",1404,"Lighting"]
["5060000000-N - POST TOP STANDARD, TYPE AB\n************","5060000000-N","POST TOP STANDARD, TYPE AB\n************",6,"Each",9000,"Lighting"]
["5065000000-N - POST TOP STANDARD, TYPE EB\n************","5065000000-N","POST TOP STANDARD, TYPE EB\n************",6,"Each",9000,"Lighting"]
[{"$f":"CONCATENATE(B68,\" - \",C68)","v":"5835000000-E - **\" ENCASEMENT PIPE"},"5835000000-E","**\" ENCASEMENT PIPE",2,"Linear Feet",1540,"Utility(U)"]
["5835400000-E - 6\" ENCASEMENT PIPE","5835400000-E","6\" ENCASEMENT PIPE",2,"Linear Feet",1540,"Utility(U)"]
["5835600000-E - 12\" ENCASEMENT PIPE","5835600000-E","12\" ENCASEMENT PIPE",2,"Linear Feet",1540,"Utility(U)"]
["5835700000-E - 16\" ENCASEMENT PIPE","5835700000-E","16\" ENCASEMENT PIPE",2,"Linear Feet",1540,"Utility(U)"]
["5835800000-E - 18\" ENCASEMENT PIPE","5835800000-E","18\" ENCASEMENT PIPE",2,"Linear Feet",1540,"Utility(U)"]
["5835900000-E - 20\" ENCASEMENT PIPE","5835900000-E","20\" ENCASEMENT PIPE",2,"Linear Feet",1540,"Utility(U)"]
["5836000000-E - 24\" ENCASEMENT PIPE","5836000000-E","24\" ENCASEMENT PIPE",2,"Linear Feet",1540,"Utility(U)"]
["5836200000-E - 30\" ENCASEMENT PIPE","5836200000-E","30\" ENCASEMENT PIPE",2,"Linear Feet",1540,"Utility(U)"]
["5836400000-E - 36\" ENCASEMENT PIPE","5836400000-E","36\" ENCASEMENT PIPE",2,"Linear Feet",1540,"Utility(U)"]
["7576000000-N - METAL STRAIN SIGNAL POLE","7576000000-N","METAL STRAIN SIGNAL POLE",6,"Each",9000,"Signals(Z)"]
["7588000000-N - METAL POLE WITH SINGLE MAST ARM","7588000000-N","METAL POLE WITH SINGLE MAST ARM",6,"Each",9000,"Signals(Z)"]
["7590000000-N - METAL POLE WITH DUAL MAST ARM","7590000000-N","METAL POLE WITH DUAL MAST ARM",6,"Each",9000,"Signals(Z)"]
["8063000000-N - PRECAST REINFORCED CONC BOX\nCULVERT AT STA ************","8063000000-N","PRECAST REINFORCED CONC BOX\nCULVERT AT STA ************",1,"Lump Sum",9000,"Culvert(C)"]
["8111000000-E - PERMANENT STEEL CASING FOR **'-**\" DIA DRILLED PIER","8111000000-E","PERMANENT STEEL CASING FOR **'-**\" DIA DRILLED PIER",2,"Linear Feet",411,"Bridge(B)"]
["8111200000-E - PERMANENT STEEL CASING FOR 3'-0\" DIA DRILLED PIER","8111200000-E","PERMANENT STEEL CASING FOR 3'-0\" DIA DRILLED PIER",2,"Linear Feet",411,"Bridge(B)"]
["8111400000-E - PERMANENT STEEL CASING FOR 3'-6\" DIA DRILLED PIER","8111400000-E","PERMANENT STEEL CASING FOR 3'-6\" DIA DRILLED PIER",2,"Linear Feet",411,"Bridge(B)"]
["8111600000-E - PERMANENT STEEL CASING FOR 4'-0\" DIA DRILLED PIER","8111600000-E","PERMANENT STEEL CASING FOR 4'-0\" DIA DRILLED PIER",2,"Linear Feet",411,"Bridge(B)"]
["8147000000-E - REINFORCED CONCRETE DECK SLAB","8147000000-E","REINFORCED CONCRETE DECK SLAB",1,"Square Feet",420,"Bridge(B)"]
["8154000000-E - REINFORCED CONCRETE DECK SLAB (SAND LIGHTWEIGHT CONCRETE)","8154000000-E","REINFORCED CONCRETE DECK SLAB (SAND LIGHTWEIGHT CONCRETE)",1,"Square Feet",420,"Bridge(B)"]
["8156000000-E - CONCRETE WEARING SURFACE","8156000000-E","CONCRETE WEARING SURFACE",1,"Square Feet",9000,"Bridge(B)"]
["8210000000-N - BRIDGE APPROACH SLABS, STATION\n************","8210000000-N","BRIDGE APPROACH SLABS, STATION\n************",1,"Lump Sum",422,"Bridge(B)"]
["8217000000-E - REINFORCING STEEL (BRIDGE)","8217000000-E","REINFORCING STEEL (BRIDGE)",1,"Pounds",425,"Bridge(B)"]
["8224000000-E - EPOXY COATED REINFORCING STEEL (BRIDGE)","8224000000-E","EPOXY COATED REINFORCING STEEL (BRIDGE)",1,"Pounds",425,"Bridge(B)"]
["8226000000-E - EPOXY COATED SPIRAL COLUMN REINFORCING STEEL (BRIDGE)","8226000000-E","EPOXY COATED SPIRAL COLUMN REINFORCING STEEL (BRIDGE)",1,"Pounds",425,"Bridge(B)"]
["8238000000-E - SPIRAL COLUMN REINFORCING STEEL (BRIDGE)","8238000000-E","SPIRAL COLUMN REINFORCING STEEL (BRIDGE)",1,"Pounds",425,"Bridge(B)"]
["8245000000-E - REINFORCING STEEL (CULVERT)","8245000000-E","REINFORCING STEEL (CULVERT)",1,"Pounds",425,"Culvert(C)"]
["8248000000-E - EPOXY COATED REINFORCING STEEL (CULVERT)","8248000000-E","EPOXY COATED REINFORCING STEEL (CULVERT)",1,"Pounds",425,"Culvert(C)"]
["8252000000-E - REINFORCING STEEL (RETAINING WALL)","8252000000-E","REINFORCING STEEL (RETAINING WALL)",1,"Pounds",425,"Walls(W)"]
["8256000000-E - TYPE III PRESRESSED CONCRETE DECK GIRDER","8256000000-E","TYPE III PRESRESSED CONCRETE DECK GIRDER",7,"Linear Feet",9000,"Bridge(B)"]
["8259000000-E - 36\" PRESTRESSED CONCRETE GIRDERS","8259000000-E","36\" PRESTRESSED CONCRETE GIRDERS",7,"Linear Feet",430,"Bridge(B)"]
["8262000000-E - 45\" PRESTRESSED CONCRETE GIRDERS","8262000000-E","45\" PRESTRESSED CONCRETE GIRDERS",7,"Linear Feet",430,"Bridge(B)"]
["8265000000-E - 54\" PRESTRESSED CONCRETE GIRDERS","8265000000-E","54\" PRESTRESSED CONCRETE GIRDERS",7,"Linear Feet",430,"Bridge(B)"]
["8268000000-E - 63\" PRESTRESSED CONCRETE GIRDERS","8268000000-E","63\" PRESTRESSED CONCRETE GIRDERS",7,"Linear Feet",430,"Bridge(B)"]
["8271000000-E - 72\" PRESTRESSED CONCRETE GIRDERS","8271000000-E","72\" PRESTRESSED CONCRETE GIRDERS",7,"Linear Feet",430,"Bridge(B)"]
["8274000000-E - MODIFIED 63\" PRESTRESSED CONC GIRDERS","8274000000-E","MODIFIED 63\" PRESTRESSED CONC GIRDERS",7,"Linear Feet",430,"Bridge(B)"]
["8277000000-E - MODIFIED 72\" PRESTRESSED CONC GIRDERS","8277000000-E","MODIFIED 72\" PRESTRESSED CONC GIRDERS",7,"Linear Feet",430,"Bridge(B)"]
["8278000000-E - FIB **\" PRESTRESSED CONCRETE GIRDERS","8278000000-E","FIB **\" PRESTRESSED CONCRETE GIRDERS",7,"Linear Feet",430,"Bridge(B)"]
["8280000000-E - APPROX          LBS STRUCTURAL STEEL","8280000000-E","APPROX          LBS STRUCTURAL STEEL",2,"Lump Sum",440,"Bridge(B)"]
["8329000000-E - 12\" PRESTRESSED CONCRETE PILES","8329000000-E","12\" PRESTRESSED CONCRETE PILES",7,"Linear Feet",450,"Bridge(B)"]
["8333000000-E - 16\" PRESTRESSED CONCRETE PILES","8333000000-E","16\" PRESTRESSED CONCRETE PILES",7,"Linear Feet",450,"Bridge(B)"]
["8336000000-E - 20\" PRESTRESSED CONCRETE PILES","8336000000-E","20\" PRESTRESSED CONCRETE PILES",7,"Linear Feet",450,"Bridge(B)"]
["8343000000-E - 22\" PRESTRESSED CONCRETE PILES","8343000000-E","22\" PRESTRESSED CONCRETE PILES",7,"Linear Feet",450,"Bridge(B)"]
["8350000000-E - 24\" PRESTRESSED CONCRETE PILES","8350000000-E","24\" PRESTRESSED CONCRETE PILES",7,"Linear Feet",450,"Bridge(B)"]
["8353000000-E - 30\" PRESTRESSED CONCRETE PILES","8353000000-E","30\" PRESTRESSED CONCRETE PILES",7,"Linear Feet",450,"Bridge(B)"]
["8355000000-E - HP *** X *** STEEL PILES","8355000000-E","HP *** X *** STEEL PILES",3,"Linear Feet",450,"Bridge(B)"]
["8356000000-E - HP ** X ** GALVANIZED STEEL PILES","8356000000-E","HP ** X ** GALVANIZED STEEL PILES",3,"Linear Feet",450,"Bridge(B)"]
["8357000000-E - HP 10 X 42 STEEL PILES","8357000000-E","HP 10 X 42 STEEL PILES",3,"Linear Feet",450,"Bridge(B)"]
["8364000000-E - HP 12 X 53 STEEL PILES","8364000000-E","HP 12 X 53 STEEL PILES",3,"Linear Feet",450,"Bridge(B)"]
["8365000000-E - HP 12 X 53 GALVANIZED STEEL PILES","8365000000-E","HP 12 X 53 GALVANIZED STEEL PILES",3,"Linear Feet",450,"Bridge(B)"]
["8378000000-E - HP 12 X 53 STEEL PILES (RETAINING WALL)","8378000000-E","HP 12 X 53 STEEL PILES (RETAINING WALL)",3,"Linear Feet",450,"Walls(W)"]
["8384000000-E - HP 14 X 73 STEEL PILES","8384000000-E","HP 14 X 73 STEEL PILES",3,"Linear Feet",450,"Bridge(B)"]
["8384200000-E - HP 14 X 73 GALVANIZED STEEL PILES","8384200000-E","HP 14 X 73 GALVANIZED STEEL PILES",3,"Linear Feet",450,"Bridge(B)"]
["8385000000-E - PP ** X **** STEEL PILES","8385000000-E","PP ** X **** STEEL PILES",4,"Linear Feet",450,"Bridge(B)"]
["8385200000-E - PP ** X **** GALVANIZED STEEL PILES","8385200000-E","PP ** X **** GALVANIZED STEEL PILES",4,"Linear Feet",450,"Bridge(B)"]
["8386000000-E - PP 18 X 0.50 STEEL PILES","8386000000-E","PP 18 X 0.50 STEEL PILES",4,"Linear Feet",450,"Bridge(B)"]
["8387000000-E - PP 18 X 0.50 GALVANIZED STEEL PILES","8387000000-E","PP 18 X 0.50 GALVANIZED STEEL PILES",4,"Linear Feet",450,"Bridge(B)"]
["8430000000-E - SHEET PILE RETAINING WALLS","8430000000-E","SHEET PILE RETAINING WALLS",3,"Square Feet",452,"Walls(W)"]
["8483000000-E - 32\" ALASKA RAIL","8483000000-E","32\" ALASKA RAIL",4,"Linear Feet",460,"Bridge(B)"]
["8484000000-E - 42\" OREGON RAIL","8484000000-E","42\" OREGON RAIL",4,"Linear Feet",460,"Bridge(B)"]
["8496000000-E - *****\" GALVANIZED STEEL PIPE RAIL","8496000000-E","*****\" GALVANIZED STEEL PIPE RAIL",4,"Linear Feet",460,"Bridge(B)"]
["8503000000-E - CONCRETE BARRIER RAIL","8503000000-E","CONCRETE BARRIER RAIL",1,"Linear Feet",460,"Bridge(B)"]
["8504000000-E - CONCRETE BARRIER RAIL WITH MOMENT SLAB","8504000000-E","CONCRETE BARRIER RAIL WITH MOMENT SLAB",1,"Linear Feet",460,"Bridge(B)"]
["8505000000-E - VERTICAL CONCRETE BARRIER RAIL","8505000000-E","VERTICAL CONCRETE BARRIER RAIL",1,"Linear Feet",460,"Bridge(B)"]
["8510000000-E - CONCRETE MEDIAN BARRIER","8510000000-E","CONCRETE MEDIAN BARRIER",1,"Linear Feet",460,"Bridge(B)"]
[{"$f":"CONCATENATE(B132,\" - \",C132)","v":"8753000000-E - 3'-0\" X 2'-3\" PRESTRESSED CONC BOX BEAMS"},"8753000000-E","3'-0\" X 2'-3\" PRESTRESSED CONC BOX BEAMS",7,"Linear Feet",430,"Bridge(B)"]
["8753100000-E - 3'-0\" X 2'-9\" PRESTRESSED CONC BOX BEAMS","8753100000-E","3'-0\" X 2'-9\" PRESTRESSED CONC BOX BEAMS",7,"Linear Feet",430,"Bridge(B)"]
["8753200000-E - 3'-0\" X 3'-3\" PRESTRESSED CONC BOX BEAMS","8753200000-E","3'-0\" X 3'-3\" PRESTRESSED CONC BOX BEAMS",7,"Linear Feet",430,"Bridge(B)"]
["8755000000-E - 3'-0\" X 1'-6\" PRESTRESSED CONC CORED SLABS","8755000000-E","3'-0\" X 1'-6\" PRESTRESSED CONC CORED SLABS",7,"Linear Feet",430,"Bridge(B)"]
["8762000000-E - 3'-0\" X 1'-9\" PRESTRESSED CONC CORED SLABS","8762000000-E","3'-0\" X 1'-9\" PRESTRESSED CONC CORED SLABS",7,"Linear Feet",430,"Bridge(B)"]
["8763000000-E - 3'-0\" X 2'-0\" PRESTRESSED CONC CORED SLABS","8763000000-E","3'-0\" X 2'-0\" PRESTRESSED CONC CORED SLABS",7,"Linear Feet",430,"Bridge(B)"]
["8802010000-E - SOIL NAIL RETAINING WALLS","8802010000-E","SOIL NAIL RETAINING WALLS",1,"Square Feet",9000,"Walls(W)"]
["8802012000-E - PILE PANEL RETAINING WALLS","8802012000-E","PILE PANEL RETAINING WALLS",3,"Square Feet",9000,"Walls(W)"]
["8802014000-E - SOLDIER PILE RETAINING WALLS","8802014000-E","SOLDIER PILE RETAINING WALLS",3,"Square Feet",9000,"Walls(W)"]
[]
[]
[]
[]
[]
[]
[]
[]
[]
[]
[]
[]
[]
[]
[]
[]
[]
[]
[]
[]
[]
[]
[]
[]
[]
[]
[]
[]
[]
[]
[]
[]
[]
[]
[]
[]
[]
[]
[]
[]
[]
[]
[]
[]
[]
[]
[]
[]
[]
[]
[]
[]
[]
[]
[]
[]
[]
[]
[]
[]
[]
[]
[]
[]
[]
[]
[]
[]
[]
[]
[]
[]
[]
[null,"Yes"]
[null,"No"]

{"sheet":"Sheet1","index":3,"n_rows":6,"n_cols":1,"rows_kept":6,"cut":false,"hidden":true,"merged":[]}
["Formulas for SPA-1"]
[]
["Yes"]
["No"]
[]
["Enter Spec Year"]